{"text_format":"1","workbook":"xlsx","n_sheets":7,"sheets":["Startseite","Datenbank","Stammdaten","Individualreport","Gruppenreport","Verweise","Pivots"],"not_rendered":{"charts":2,"images":30,"macros":1,"external_links":0,"defined_names":11,"comments":0,"pivot_tables":3},"unopened":[],"bounds":{"document_bytes":16777216,"sheet_cells":100000,"rows_first":2000,"rows_last":500,"rows_between":2000,"halvings":0,"cell_chars":16384,"cell_head_chars":4096},"cells_cut":0,"cells_raw":0,"read":"whole","date_system":"1900"}

{"sheet":"Startseite","index":0,"n_rows":0,"n_cols":0,"rows_kept":0,"cut":false,"hidden":false,"merged":[]}

{"sheet":"Datenbank","index":1,"n_rows":5,"n_cols":105,"rows_kept":5,"cut":false,"hidden":false,"merged":[[0,1,1,6]]}
[null,"Datenbank"]
[]
[]
["ID","Name","Vorname","Nachname","Geburtstag","Alter","Geschlecht","Sportart","Disziplin","Kader","Verein","Landesverband","Testdatum","Globaltest Streckung","Streckung_Schmerz","Streckung_Kommentar","Subtest Wirbelsäulenextension","WS-Extension_Schmerz","WS-Extension_Kommentar","Subtest Mobilität Hüftbeuger links","Subtest Mobilität Hüftbeuger rechts","Mobilität Hüftbeuger_Schmerz","Mobilität Hüftbeuger_Kommentar","Globaltest Beugung","Beugung_Schmerzen","Beugung_Kommentar","Subtest Wirbelsäulenflexion","WS-Flexion_Schmerzen","WS-Flexion_Kommentar","Subtest Oberschenkelrückseite links","Subtest Oberschenkelrückseite rechts","Oberschenkelrückseite_Schmerzen","Oberschenkelrückseite_Kommentar","Globaltest Drehung","Drehung_Schmerzen","Drehung_Kommentar","Subtest Oberkörperrotation links","Subtest Oberkörperrotation rechts","Oberkörperrotation_Schmerzen","Oberkörperrotation_Kommentar","Subtest Hüftrotation - Innenrotation links","Subtest Hüftrotation - Innenrotation rechts","Hüftrotation - Innenrotation_Schmerzen","Hüftrotation - Innenrotation_Kommentar","Subtest Hüftrotation - Außenrotation links","Subtest Hüftrotation - Außenrotation rechts","Hüftrotation-Außenrotation_Schmerzen","Hüftrotation-Außenrotation_Kommentar","Globaltest Hocke","Hocke_Schmerzen","Hocke_Kommentar","Subtest Sprunggelenksmobilisation links","Subtest Sprunggelenksmobilisation rechts","Sprunggelenksmobilisation_Schmerzen","Sprunggelenksmobilisation_Kommentar","Subtest Hüftflexibilität links","Subtest Hüftflexibilität rechts","Hüftflexibilität_Schmerzen","Hüftflexibilität_Kommentar","Schultermobilisation Innenrotation links","Schultermobilisation Innenrotation rechts","Schultermobilisation Außenrotation links","Schultermobilisation Außenrotation rechts","Schulter_Schmerzen","Schulter_Kommentar","Rumpfstabilisation links","Rumpfstabilisation rechts","Rumpfstabilisation_Schmerzen","Rumpfstabilisation_Kommentar","Gleichgewichtsfähigkeit ","Gleichgewichtsfähigkeit_Schmerzen","Gleichgewichtsfähigkeit_Kommentar","Subtest Gleichgewichtsfähigkeit offene Augen","Gleichgewichtsfähigkeit offene Augen_Schmerzen","Gleichgewichtsfähigkeit offene Augen_Kommentar","Kniebeuge_Beinachsenstabilität links","Kniebeuge_Beinachsenstabilität rechts","Kniebeuge_Beckenstabilität_links","Kniebeuge_Beckenstabilität_rechts","Reichweite links [cm]","Reichweite rechts [cm]","Balance-Kniebeuge_Schmerzen","Balance-Kniebeuge_Kommentar","Vertikalsprung_Beinachsenstabilität","Sprunghöhe [cm]","Vertikalsprung_Schmerzen","Vertikalsprung_Kommentar","Vor- und Nachname","Altersgruppe","Streckung","Beugung","Drehung","Hocke"," Schulter"," Schultermobilität rechts","Rumpf","Gleichgewicht","Beinachse","Beckenachse","Defizite Mobilität","Defizite Rumpfstabilität","Defizite statische posturale Kontrolle","Defizite Beinachsenstabilität","Defizite Beckenstabilität","Schmerzen"]
[1,{"$f":"Tabelle2[[#This Row],[Vorname]]& \" \" &Tabelle2[[#This Row],[Nachname]]","v":"Maxi Musterfrau"},"Maxi","Musterfrau","01.01.2013",{"$f":"IF(ISBLANK(E5),\"\",DATEDIF(E5,TODAY(),\"Y\"))","v":11},"weiblich","Schwimmen",null,"NK2","SC DHFK","Sachsen","22.02.2023","bestanden",null,null,"bestanden",null,null,"bestanden","bestanden",null,null,"nicht bestanden",null,null,"bestanden",null,null,"bestanden","nicht bestanden",null,null,"bestanden",null,null,"bestanden","bestanden",null,null,"bestanden","bestanden",null,null,"bestanden","bestanden",null,null,"bestanden",null,null,"bestanden","bestanden",null,null,"bestanden","bestanden",null,null,"bestanden","bestanden","bestanden","bestanden",null,null,"bestanden","bestanden",null,null,"bestanden",null,null,"bestanden",null,null,"bestanden","bestanden","bestanden","bestanden","","",null,null,"bestanden","",null,null,{"$f":"B5","v":"Maxi Musterfrau"},{"$f":"IF(ISBLANK(Tabelle2[[#This Row],[Geburtstag]]),\"\",IF(Tabelle2[[#This Row],[Alter]]>30,\"> 30 J.\",IF(Tabelle2[[#This Row],[Alter]]>24,\"25-29 J.\",IF(Tabelle2[[#This Row],[Alter]]>19,\"20-24 J.\",IF(Tabelle2[[#This Row],[Alter]]>17,\"18-20 J.\",IF(Tabelle2[[#This Row],[Alter]]>15,\"16-18 J.\",IF(Tabelle2[[#This Row],[Alter]]>13,\"14-16 J.\",IF(Tabelle2[[#This Row],[Alter]]>11,\"12-14 J.\",IF(Tabelle2[[#This Row],[Alter]]>9,\"10-12 J.\",IF(Tabelle2[[#This Row],[Alter]]>5,\"6-10 J.\",\"<6 J.\"))))))))))","v":"10-12 J."},{"$f":"IF(Tabelle2[[#This Row],[Globaltest Streckung]]=\"\",\"\",IF(Tabelle2[[#This Row],[Globaltest Streckung]]=\"bestanden\",3, IF(COUNTIF(Tabelle2[[#This Row],[Subtest Wirbelsäulenextension]:[Subtest Mobilität Hüftbeuger rechts]],\"bestanden\")=3,3,IF(AND(Tabelle2[[#This Row],[Subtest Wirbelsäulenextension]]=\"bestanden\", Tabelle2[[#This Row],[Subtest Mobilität Hüftbeuger links]]=\"bestanden\", Tabelle2[[#This Row],[Subtest Mobilität Hüftbeuger rechts]]=\"nicht bestanden\"), 2,IF(AND(Tabelle2[[#This Row],[Subtest Wirbelsäulenextension]]=\"bestanden\", Tabelle2[[#This Row],[Subtest Mobilität Hüftbeuger links]]=\"nicht bestanden\", Tabelle2[[#This Row],[Subtest Mobilität Hüftbeuger rechts]]=\"bestanden\"),2,IF(AND(Tabelle2[[#This Row],[Subtest Wirbelsäulenextension]]=\"nicht bestanden\", Tabelle2[[#This Row],[Subtest Mobilität Hüftbeuger links]]=\"bestanden\", Tabelle2[[#This Row],[Subtest Mobilität Hüftbeuger rechts]]=\"bestanden\"), 2,IF(AND(Tabelle2[[#This Row],[Subtest Wirbelsäulenextension]]=\"bestanden\", Tabelle2[[#This Row],[Subtest Mobilität Hüftbeuger links]]=\"nicht bestanden\", Tabelle2[[#This Row],[Subtest Mobilität Hüftbeuger rechts]]=\"nicht bestanden\"), 2,1)))))))","v":3},{"$f":"IF(Tabelle2[[#This Row],[Globaltest Beugung]]=\"\",\"\",IF(Tabelle2[[#This Row],[Globaltest Beugung]]=\"bestanden\",3, IF(COUNTIF(Tabelle2[[#This Row],[Subtest Wirbelsäulenflexion]:[Subtest Oberschenkelrückseite rechts]],\"bestanden\")=3,3,IF(AND(Tabelle2[[#This Row],[Subtest Wirbelsäulenflexion]]=\"bestanden\", Tabelle2[[#This Row],[Subtest Oberschenkelrückseite links]]=\"bestanden\", Tabelle2[[#This Row],[Subtest Oberschenkelrückseite rechts]]=\"nicht bestanden\"), 2,IF(AND(Tabelle2[[#This Row],[Subtest Wirbelsäulenflexion]]=\"bestanden\", Tabelle2[[#This Row],[Subtest Oberschenkelrückseite links]]=\"nicht bestanden\", Tabelle2[[#This Row],[Subtest Oberschenkelrückseite rechts]]=\"bestanden\"),2,IF(AND(Tabelle2[[#This Row],[Subtest Wirbelsäulenflexion]]=\"nicht bestanden\", Tabelle2[[#This Row],[Subtest Oberschenkelrückseite links]]=\"bestanden\", Tabelle2[[#This Row],[Subtest Oberschenkelrückseite rechts]]=\"bestanden\"), 2,IF(AND(Tabelle2[[#This Row],[Subtest Wirbelsäulenflexion]]=\"bestanden\", Tabelle2[[#This Row],[Subtest Oberschenkelrückseite links]]=\"nicht bestanden\", Tabelle2[[#This Row],[Subtest Oberschenkelrückseite rechts]]=\"nicht bestanden\"), 2,1)))))))","v":2},{"$f":"IF(Tabelle2[[#This Row],[Globaltest Drehung]]=\"\",\"\",IF(Tabelle2[[#This Row],[Globaltest Drehung]]=\"bestanden\",3, IF(AND(COUNTIF(Tabelle2[[#This Row],[Subtest Oberkörperrotation links]:[Subtest Oberkörperrotation rechts]],\"nicht bestanden\")>0, COUNTIF(Tabelle2[[#This Row],[Subtest Hüftrotation - Innenrotation links]:[Subtest Hüftrotation - Außenrotation rechts]],\"bestanden\")=6),2,IF(AND(OR(Tabelle2[[#This Row],[Subtest Oberkörperrotation links]]=\"nicht bestanden\", Tabelle2[[#This Row],[Subtest Oberkörperrotation rechts]]=\"nicht bestanden\"), Tabelle2[[#This Row],[Subtest Hüftrotation - Innenrotation links]]=\"bestanden\", Tabelle2[[#This Row],[Subtest Hüftrotation - Innenrotation rechts]]=\"bestanden\", Tabelle2[[#This Row],[Subtest Hüftrotation - Außenrotation links]]=\"bestanden\", Tabelle2[[#This Row],[Subtest Hüftrotation - Außenrotation rechts]]=\"bestanden\"), 2,IF(AND(OR(Tabelle2[[#This Row],[Subtest Hüftrotation - Innenrotation links]]=\"nicht bestanden\", Tabelle2[[#This Row],[Subtest Hüftrotation - Innenrotation rechts]]=\"nicht bestanden\"), Tabelle2[[#This Row],[Subtest Oberkörperrotation links]]=\"bestanden\", Tabelle2[[#This Row],[Subtest Oberkörperrotation rechts]]=\"bestanden\", Tabelle2[[#This Row],[Subtest Hüftrotation - Außenrotation links]]=\"bestanden\", Tabelle2[[#This Row],[Subtest Hüftrotation - Außenrotation rechts]]=\"bestanden\"), 2,IF(AND(OR(Tabelle2[[#This Row],[Subtest Hüftrotation - Außenrotation links]]=\"nicht bestanden\", Tabelle2[[#This Row],[Subtest Hüftrotation - Außenrotation rechts]]=\"nicht bestanden\"), Tabelle2[[#This Row],[Subtest Oberkörperrotation links]]=\"bestanden\", Tabelle2[[#This Row],[Subtest Oberkörperrotation rechts]]=\"bestanden\", Tabelle2[[#This Row],[Subtest Hüftrotation - Innenrotation links]]=\"bestanden\", Tabelle2[[#This Row],[Subtest Hüftrotation - Innenrotation rechts]]=\"bestanden\"), 2, 1))))))","v":3},{"$f":"IF(Tabelle2[[#This Row],[Globaltest Hocke]]=\"\",\"\",IF(Tabelle2[[#This Row],[Globaltest Hocke]]=\"bestanden\",3, IF(COUNTIF(Tabelle2[[#This Row],[Subtest Sprunggelenksmobilisation links]:[Subtest Hüftflexibilität rechts]],\"bestanden\")=4,3,IF(AND(Tabelle2[[#This Row],[Subtest Sprunggelenksmobilisation links]]=\"bestanden\", Tabelle2[[#This Row],[Subtest Sprunggelenksmobilisation rechts]]=\"bestanden\", OR(Tabelle2[[#This Row],[Subtest Hüftflexibilität rechts]]=\"nicht bestanden\", Tabelle2[[#This Row],[Subtest Hüftflexibilität links]]=\"nicht bestanden\")), 2, IF(AND(Tabelle2[[#This Row],[Subtest Hüftflexibilität links]]=\"bestanden\", Tabelle2[[#This Row],[Subtest Hüftflexibilität rechts]]=\"bestanden\", OR(Tabelle2[[#This Row],[Subtest Sprunggelenksmobilisation links]]=\"nicht bestanden\", Tabelle2[[#This Row],[Subtest Sprunggelenksmobilisation rechts]]=\"nicht bestanden\")), 2, IF(OR(Tabelle2[[#This Row],[Subtest Sprunggelenksmobilisation links]]=\"nicht bestanden\", Tabelle2[[#This Row],[Subtest Sprunggelenksmobilisation rechts]]=\"nicht bestanden\", OR(Tabelle2[[#This Row],[Subtest Hüftflexibilität rechts]]=\"nicht bestanden\", Tabelle2[[#This Row],[Subtest Hüftflexibilität links]]=\"nicht bestanden\")), 1,1))))))","v":3},{"$f":"IF(Tabelle2[[#This Row],[Schultermobilisation Innenrotation links]]=\"\",\"\",IF(COUNTIF(Tabelle2[[#This Row],[Schultermobilisation Innenrotation links]:[Schultermobilisation Außenrotation rechts]],\"bestanden\")=4,3,IF(AND(OR(Tabelle2[[#This Row],[Schultermobilisation Innenrotation links]]=\"nicht bestanden\",Tabelle2[[#This Row],[Schultermobilisation Innenrotation rechts]]=\"nicht bestanden\"),Tabelle2[[#This Row],[Schultermobilisation Außenrotation links]]=\"bestanden\",Tabelle2[[#This Row],[Schultermobilisation Außenrotation rechts]]=\"bestanden\"),2,IF(AND(OR(Tabelle2[[#This Row],[Schultermobilisation Außenrotation links]]=\"nicht bestanden\",Tabelle2[[#This Row],[Schultermobilisation Außenrotation rechts]]=\"nicht bestanden\"),Tabelle2[[#This Row],[Schultermobilisation Innenrotation links]]=\"bestanden\",Tabelle2[[#This Row],[Schultermobilisation Innenrotation rechts]]=\"bestanden\"),2,1))))","v":3},{"$f":"IF(Tabelle2[[#This Row],[Schultermobilisation Innenrotation rechts]]=\"\",\"\",IF(COUNTIF(Tabelle2[[#This Row],[Schultermobilisation Innenrotation rechts]],\"nicht bestanden\")+COUNTIF(Tabelle2[[#This Row],[Schultermobilisation Außenrotation rechts]],\"nicht bestanden\")=2,1,IF(COUNTIF(Tabelle2[[#This Row],[Schultermobilisation Innenrotation rechts]],\"nicht bestanden\")+COUNTIF(Tabelle2[[#This Row],[Schultermobilisation Außenrotation rechts]],\"nicht bestanden\")=1,2,3)))","v":3},{"$f":"IF(Tabelle2[[#This Row],[Rumpfstabilisation links]]=\"\",\"\",IF(COUNTIF(Tabelle2[[#This Row],[Rumpfstabilisation links]:[Rumpfstabilisation rechts]],\"bestanden\")=2,3,IF(COUNTIF(Tabelle2[[#This Row],[Rumpfstabilisation links]:[Rumpfstabilisation rechts]],\"bestanden\")=1,2,1)))","v":3},{"$f":"IF(Tabelle2[[#This Row],[Gleichgewichtsfähigkeit ]]=\"\",\"\",IF(COUNTIF(Tabelle2[[#This Row],[Gleichgewichtsfähigkeit ]:[Subtest Gleichgewichtsfähigkeit offene Augen]],\"bestanden\")=2,3,IF(COUNTIF(Tabelle2[[#This Row],[Gleichgewichtsfähigkeit ]:[Subtest Gleichgewichtsfähigkeit offene Augen]],\"bestanden\")=1,2,1)))","v":3},{"$f":"IF(Tabelle2[[#This Row],[Kniebeuge_Beinachsenstabilität links]]=\"\",\"\",IF(COUNTIF(Tabelle2[[#This Row],[Kniebeuge_Beinachsenstabilität links]],\"bestanden\")+COUNTIF(Tabelle2[[#This Row],[Kniebeuge_Beinachsenstabilität rechts]],\"bestanden\")+COUNTIF(Tabelle2[[#This Row],[Vertikalsprung_Beinachsenstabilität]],\"bestanden\")=3,3,IF(COUNTIF(Tabelle2[[#This Row],[Kniebeuge_Beinachsenstabilität links]],\"bestanden\")+COUNTIF(Tabelle2[[#This Row],[Kniebeuge_Beinachsenstabilität rechts]],\"bestanden\")+COUNTIF(Tabelle2[[#This Row],[Vertikalsprung_Beinachsenstabilität]],\"bestanden\")=2,2,1)))","v":3},{"$f":"IF(Tabelle2[[#This Row],[Kniebeuge_Beckenstabilität_links]]=\"\",\"\",IF(COUNTIF(Tabelle2[[#This Row],[Kniebeuge_Beckenstabilität_links]:[Kniebeuge_Beckenstabilität_rechts]],\"bestanden\")=2,3,IF(COUNTIF(Tabelle2[[#This Row],[Kniebeuge_Beckenstabilität_links]:[Kniebeuge_Beckenstabilität_rechts]],\"bestanden\")=1,2,1)))","v":3},{"$f":"IF(Tabelle2[[#This Row],[Streckung]]=\"\",\"\",IF(Tabelle2[[#This Row],[Subtest Wirbelsäulenextension]]=\"bestanden\",\"\",\"LWS-Streckung, \")\n&IF(AND(Tabelle2[[#This Row],[Subtest Mobilität Hüftbeuger links]]=\"nicht bestanden\", Tabelle2[[#This Row],[Subtest Mobilität Hüftbeuger rechts]]=\"nicht bestanden\"), \"Mobilität Hüftbeuger beidseitig, \",IF(Tabelle2[[#This Row],[Subtest Mobilität Hüftbeuger links]]=\"nicht bestanden\",\"Hüftbeuger links, \",IF(Tabelle2[[#This Row],[Subtest Mobilität Hüftbeuger rechts]]=\"nicht bestanden\",\"Hüftbeuger rechts, \",\"\")))\n&IF(Tabelle2[[#This Row],[Subtest Wirbelsäulenflexion]]=\"bestanden\",\"\",\"Wirbelsäulenkrümmung, \")\n&IF(AND(Tabelle2[[#This Row],[Subtest Oberschenkelrückseite links]]=\"nicht bestanden\", Tabelle2[[#This Row],[Subtest Oberschenkelrückseite rechts]]=\"nicht bestanden\"), \"Oberschenkelrückseite beidseitig, \",IF(Tabelle2[[#This Row],[Subtest Oberschenkelrückseite links]]=\"nicht bestanden\",\"Oberschenkelrückseite links, \",IF(Tabelle2[[#This Row],[Subtest Oberschenkelrückseite rechts]]=\"nicht bestanden\",\"Oberschenkelrückseite rechts, \",\"\")))\n&IF(AND(Tabelle2[[#This Row],[Subtest Oberkörperrotation links]]=\"nicht bestanden\", Tabelle2[[#This Row],[Subtest Oberkörperrotation rechts]]=\"nicht bestanden\"), \"Oberkörperrotation beidseitig, \",IF(Tabelle2[[#This Row],[Subtest Oberkörperrotation links]]=\"nicht bestanden\",\"Oberkörperrotation links, \",IF(Tabelle2[[#This Row],[Subtest Oberkörperrotation rechts]]=\"nicht bestanden\",\"Oberkörperrotation rechts, \",\"\")))\n&IF(AND(Tabelle2[[#This Row],[Subtest Hüftrotation - Innenrotation links]]=\"nicht bestanden\", Tabelle2[[#This Row],[Subtest Hüftrotation - Innenrotation rechts]]=\"nicht bestanden\"), \"Hüftinnenrotation beidseitig, \",IF(Tabelle2[[#This Row],[Subtest Hüftrotation - Innenrotation links]]=\"nicht bestanden\",\"Hüftinnenrotation links, \",IF(Tabelle2[[#This Row],[Subtest Hüftrotation - Innenrotation rechts]]=\"nicht bestanden\",\"Hüftinnenrotation rechts, \",\"\")))\n&IF(AND(Tabelle2[[#This Row],[Subtest Hüftrotation - Außenrotation links]]=\"nicht bestanden\", Tabelle2[[#This Row],[Subtest Hüftrotation - Außenrotation rechts]]=\"nicht bestanden\"), \"Hüftaußenrotation beidseitig, \",IF(Tabelle2[[#This Row],[Subtest Hüftrotation - Außenrotation links]]=\"nicht bestanden\",\"Hüftaußenrotation links, \",IF(Tabelle2[[#This Row],[Subtest Hüftrotation - Außenrotation rechts]]=\"nicht bestanden\",\"Hüftaußenrotation rechts, \",\"\")))\n&IF(AND(Tabelle2[[#This Row],[Subtest Sprunggelenksmobilisation links]]=\"nicht bestanden\", Tabelle2[[#This Row],[Subtest Sprunggelenksmobilisation rechts]]=\"nicht bestanden\"), \"Sprunggelenksbeweglichkeit beidseitig, \",IF(Tabelle2[[#This Row],[Subtest Sprunggelenksmobilisation links]]=\"nicht bestanden\",\"Sprunggelenksbeweglichkeit links, \",IF(Tabelle2[[#This Row],[Subtest Sprunggelenksmobilisation rechts]]=\"nicht bestanden\",\"Sprunggelenksbeweglichkeit rechts, \",\"\")))\n&IF(AND(Tabelle2[[#This Row],[Subtest Hüftflexibilität links]]=\"nicht bestanden\", Tabelle2[[#This Row],[Subtest Hüftflexibilität rechts]]=\"nicht bestanden\"), \"Hüftflexibilität beidseitig, \",IF(Tabelle2[[#This Row],[Subtest Hüftflexibilität links]]=\"nicht bestanden\",\"Hüftflexibilität links, \",IF(Tabelle2[[#This Row],[Subtest Hüftflexibilität rechts]]=\"nicht bestanden\",\"Hüftflexibilität rechts, \",\"\")))\n&IF(AND(Tabelle2[[#This Row],[Schultermobilisation Innenrotation links]]=\"nicht bestanden\", Tabelle2[[#This Row],[Schultermobilisation Innenrotation rechts]]=\"nicht bestanden\"), \"Schulterinnenrotation beidseitig, \", IF(Tabelle2[[#This Row],[Schultermobilisation Innenrotation links]]=\"nicht bestanden\",\"Schulterinnenrotation links, \",IF(Tabelle2[[#This Row],[Schultermobilisation Innenrotation rechts]]=\"nicht bestanden\",\"Schulterinnenrotation rechts, \",\"\")))\n&IF(AND(Tabelle2[[#This Row],[Schultermobilisation Außenrotation links]]=\"nicht bestanden\", Tabelle2[[#This Row],[Schultermobilisation Außenrotation rechts]]=\"nicht bestanden\"), \"Schulteraußenrotation beidseitig, \",IF(Tabelle2[[#This Row],[Schultermobilisation Außenrotation links]]=\"nicht bestanden\",\"Schulteraußenrotation links, \",IF(Tabelle2[[#This Row],[Schultermobilisation Außenrotation rechts]]=\"nicht bestanden\",\"Schulteraußenrotation rechts, \",\"\"))))","v":"Oberschenkelrückseite rechts, "},{"$f":"IF(AND(Tabelle2[[#This Row],[Rumpfstabilisation links]]=\"nicht bestanden\",Tabelle2[[#This Row],[Rumpfstabilisation rechts]]=\"nicht bestanden\"),\"bds. beeinträchtigt\",IF(Tabelle2[[#This Row],[Rumpfstabilisation links]]=\"nicht bestanden\",\"links beeinträchtigt\",IF(Tabelle2[[#This Row],[Rumpfstabilisation rechts]]=\"nicht bestanden\",\"rechts beeinträchtigt\",\"-\")))","v":"-"},{"$f":"IF(Tabelle2[[#This Row],[Gleichgewicht]]=\"\",\"\",IF(Tabelle2[[#This Row],[Gleichgewichtsfähigkeit ]]=\"nicht bestanden\", \"leicht beeinträchtigt\", IF(Tabelle2[[#This Row],[Subtest Gleichgewichtsfähigkeit offene Augen]]=\"nicht bestanden\",\"stark eingeschränkt\",\"-\")))","v":"-"},{"$f":"IF(Tabelle2[[#This Row],[Beinachse]]=\"\",\"\",IF(AND(Tabelle2[[#This Row],[Kniebeuge_Beinachsenstabilität links]]=\"nicht bestanden\", Tabelle2[[#This Row],[Kniebeuge_Beinachsenstabilität rechts]]=\"nicht bestanden\", Tabelle2[[#This Row],[Vertikalsprung_Beinachsenstabilität]]=\"nicht bestanden\"), \"bds. beeinträchtigt\",IF(AND(Tabelle2[[#This Row],[Kniebeuge_Beinachsenstabilität links]]=\"nicht bestanden\", Tabelle2[[#This Row],[Kniebeuge_Beinachsenstabilität rechts]]=\"nicht bestanden\", Tabelle2[[#This Row],[Vertikalsprung_Beinachsenstabilität]]=\"bestanden\"), \"bds. beeinträchtigt\", IF(AND(Tabelle2[[#This Row],[Vertikalsprung_Beinachsenstabilität]]=\"nicht bestanden\",Tabelle2[[#This Row],[Kniebeuge_Beinachsenstabilität links]]=\"bestanden\",Tabelle2[[#This Row],[Kniebeuge_Beinachsenstabilität rechts]]=\"bestanden\"), \"bei Sprung beeinträchtigt\",IF(AND(Tabelle2[[#This Row],[Kniebeuge_Beinachsenstabilität rechts]]=\"nicht bestanden\",Tabelle2[[#This Row],[Kniebeuge_Beinachsenstabilität links]]=\"bestanden\"), \"rechts beeinträchtigt\", IF(AND(Tabelle2[[#This Row],[Kniebeuge_Beinachsenstabilität rechts]]=\"bestanden\",Tabelle2[[#This Row],[Kniebeuge_Beinachsenstabilität links]]=\"nicht bestanden\"), \"links beeinträchtigt\", IF(AND(Tabelle2[[#This Row],[Vertikalsprung_Beinachsenstabilität]]=\"bestanden\", Tabelle2[[#This Row],[Kniebeuge_Beinachsenstabilität rechts]]=\"bestanden\",Tabelle2[[#This Row],[Kniebeuge_Beinachsenstabilität links]]=\"bestanden\"), \"-\")))))))","v":"-"},{"$f":"IF(Tabelle2[[#This Row],[Beckenachse]]=\"\",\"\",IF(AND(Tabelle2[[#This Row],[Kniebeuge_Beckenstabilität_links]]=\"nicht bestanden\",Tabelle2[[#This Row],[Kniebeuge_Beckenstabilität_rechts]]=\"nicht bestanden\"),\"bds. beeinträchtigt\",IF(AND(Tabelle2[[#This Row],[Kniebeuge_Beckenstabilität_links]]=\"bestanden\",Tabelle2[[#This Row],[Kniebeuge_Beckenstabilität_rechts]]=\"bestanden\"),\"-\",IF(Tabelle2[[#This Row],[Kniebeuge_Beckenstabilität_links]]=\"bestanden\",\"\",\"links beeinträchtigt\")&IF(Tabelle2[[#This Row],[Kniebeuge_Beckenstabilität_rechts]]=\"bestanden\",\"\",\"rechts beeinträchtigt\"))))","v":"-"},{"$f":"IF(COUNTIF(Tabelle2[[#This Row],[Streckung_Schmerz]:[Vertikalsprung_Schmerzen]], \"x\")=0, \"keine\", \"\") &\nIF(Tabelle2[[#This Row],[Streckung_Schmerz]]=\"x\", \"bei Durchführung der Hyperextension, \", \"\") &\nIF(Tabelle2[[#This Row],[WS-Extension_Schmerz]]=\"x\", \"bei Durchführung der Wirbelsäulenextension, \", \"\") &\nIF(Tabelle2[[#This Row],[Mobilität Hüftbeuger_Schmerz]]=\"x\", \"bei Durchführung der Hüftflexion, \", \"\") &\nIF(Tabelle2[[#This Row],[Beugung_Schmerzen]]=\"x\", \"bei Durchführung der Hyperflexion, \", \"\") &\nIF(Tabelle2[[#This Row],[WS-Flexion_Schmerzen]]=\"x\", \"bei Durchführung der Wirbelsäulenflexion, \", \"\") &\nIF(Tabelle2[[#This Row],[Oberschenkelrückseite_Schmerzen]]=\"x\", \"bei Durchführung des Active-Straight-Leg-Raise, \", \"\") &\nIF(Tabelle2[[#This Row],[Drehung_Schmerzen]]=\"x\", \"bei Durchführung der multisegmentalen Rotation, \", \"\") &\nIF(Tabelle2[[#This Row],[Oberkörperrotation_Schmerzen]]=\"x\", \"bei Durchführung der Rumpfrotation, \", \"\") &\nIF(Tabelle2[[#This Row],[Hüftrotation - Innenrotation_Schmerzen]]=\"x\", \"bei Durchführung der Hüftinnenrotation, \", \"\") &\nIF(Tabelle2[[#This Row],[Hüftrotation-Außenrotation_Schmerzen]]=\"x\", \"bei Durchführung der Hüftaußenrotation, \", \"\") &\nIF(Tabelle2[[#This Row],[Hocke_Schmerzen]]=\"x\", \"bei tiefer Kniebeuge, \", \"\") &\nIF(Tabelle2[[#This Row],[Sprunggelenksmobilisation_Schmerzen]]=\"x\", \"bei Testung der Sprunggelenksbeweglichkeit, \", \"\") &\nIF(Tabelle2[[#This Row],[Hüftflexibilität_Schmerzen]]=\"x\", \"bei Testung der Hüftflexibilität, \", \"\") &\nIF(Tabelle2[[#This Row],[Schulter_Schmerzen]]=\"x\", \"bei Testung der Schultermobilität, \", \"\") &\nIF(Tabelle2[[#This Row],[Rumpfstabilisation_Schmerzen]]=\"x\", \"bei Testung der Rumpfstabilisation, \", \"\") &\nIF(Tabelle2[[#This Row],[Gleichgewichtsfähigkeit_Schmerzen]]=\"x\", \"bei Testung der Gleichgewichtsfähigkeit, \", \"\") &\nIF(Tabelle2[[#This Row],[Gleichgewichtsfähigkeit offene Augen_Schmerzen]]=\"x\", \"bei Testung der Gleichgewichtsfähigkeit mit offenen Augen, \", \"\") &\nIF(Tabelle2[[#This Row],[Balance-Kniebeuge_Schmerzen]]=\"x\", \"bei Durchführung der einbeinigen Kniebeuge, \", \"\") &\nIF(Tabelle2[[#This Row],[Vertikalsprung_Schmerzen]]=\"x\", \"bei Durchführung des einbeinigen Vertikalsprungs, \", \"\") &\nIF(Tabelle2[[#This Row],[Hüftflexibilität_Schmerzen]]=\"x\", \" bei Durchführung der Hüftflexibilität, \", \"\")","v":"keine"}]

{"sheet":"Stammdaten","index":2,"n_rows":100,"n_cols":11,"rows_kept":100,"cut":false,"hidden":false,"merged":[]}
[null,"Stammdateneingabe"]
[]
[]
[null,"Vorname","Nachname","Geburtstag","Alter","Geschlecht","Sportart","Disziplin","Kader","Verein","Landesverband"]
[null,null,null,null,{"$f":"IF(ISBLANK(D5),\"\",DATEDIF(D5,TODAY(),\"Y\"))","v":""}]
[null,null,null,null,{"$f":"IF(ISBLANK(D6),\"\",DATEDIF(D6,TODAY(),\"Y\"))","v":""}]
[null,null,null,null,""]
[null,null,null,null,""]
[null,null,null,null,""]
[null,null,null,null,""]
[null,null,null,null,""]
[null,null,null,null,""]
[null,null,null,null,""]
[null,null,null,null,""]
[null,null,null,null,""]
[null,null,null,null,""]
[null,null,null,null,""]
[null,null,null,null,""]
[null,null,null,null,""]
[null,null,null,null,""]
[null,null,null,null,""]
[null,null,null,null,""]
[null,null,null,null,""]
[null,null,null,null,""]
[null,null,null,null,""]
[null,null,null,null,""]
[null,null,null,null,""]
[null,null,null,null,""]
[null,null,null,null,""]
[null,null,null,null,""]
[null,null,null,null,""]
[null,null,null,null,""]
[null,null,null,null,""]
[null,null,null,null,""]
[null,null,null,null,""]
[null,null,null,null,""]
[null,null,null,null,""]
[null,null,null,null,""]
[null,null,null,null,""]
[null,null,null,null,""]
[null,null,null,null,""]
[null,null,null,null,""]
[null,null,null,null,""]
[null,null,null,null,""]
[null,null,null,null,""]
[null,null,null,null,""]
[null,null,null,null,""]
[null,null,null,null,""]
[null,null,null,null,""]
[null,null,null,null,""]
[null,null,null,null,""]
[null,null,null,null,""]
[null,null,null,null,""]
[null,null,null,null,""]
[null,null,null,null,""]
[null,null,null,null,""]
[null,null,null,null,""]
[null,null,null,null,""]
[null,null,null,null,""]
[null,null,null,null,""]
[null,null,null,null,""]
[null,null,null,null,""]
[null,null,null,null,""]
[null,null,null,null,""]
[null,null,null,null,""]
[null,null,null,null,""]
[null,null,null,null,""]
[null,null,null,null,""]
[null,null,null,null,""]
[null,null,null,null,{"$f":"IF(ISBLANK(D70),\"\",DATEDIF(D70,TODAY(),\"Y\"))","v":""}]
[null,null,null,null,""]
[null,null,null,null,""]
[null,null,null,null,""]
[null,null,null,null,""]
[null,null,null,null,""]
[null,null,null,null,""]
[null,null,null,null,""]
[null,null,null,null,""]
[null,null,null,null,""]
[null,null,null,null,""]
[null,null,null,null,""]
[null,null,null,null,""]
[null,null,null,null,""]
[null,null,null,null,""]
[null,null,null,null,""]
[null,null,null,null,""]
[null,null,null,null,""]
[null,null,null,null,""]
[null,null,null,null,""]
[null,null,null,null,""]
[null,null,null,null,""]
[null,null,null,null,""]
[null,null,null,null,""]
[null,null,null,null,""]
[null,null,null,null,""]
[null,null,null,null,""]
[null,null,null,null,""]
[null,null,null,null,""]
[null,null,null,null,""]
[null,null,null,null,""]

{"sheet":"Individualreport","index":3,"n_rows":60,"n_cols":33,"rows_kept":60,"cut":false,"hidden":false,"merged":[[57,7,58,18],[47,14,52,25],[1,32,3,46],[5,22,5,25],[36,3,36,25],[4,3,5,20],[1,3,3,21]]}
[]
[null,null,null,"Auswertung Funktionsdiagnostik",null,null,null,null,null,null,null,null,null,null,null,null,null,null,null,null,null,null,null,null,null,null,null,null,null,null,null,null,"Übungsempfehlungen"]
[]
[]
[null,null,null,"test Testperson",null,null,null,null,null,null,null,null,null,null,null,null,null,null,null,null,null,null,null,"Testdatum"]
[null,null,null,null,null,null,null,null,null,null,null,null,null,null,null,null,null,null,null,null,null,null,{"$f":"IF($D$5=\"\",\"\",VLOOKUP($D$5,Alle,12,0))","v":{"$error":"#N/A"}}]
[]
[]
[null,null,null,"Geschlecht:",null,null,null,null,{"$f":"IF($D$5=\"\",\"\",VLOOKUP($D$5,Alle,6,0))","v":{"$error":"#N/A"}},null,null,null,null,null,"Alter:",null,null,{"$f":"IF($D$5=\"\",\"\",VLOOKUP($D$5,Alle,5,0))","v":{"$error":"#N/A"}},"Jahre",null,null,null,null,"Kader:",null,{"$f":"IF($D$5=\"\",\"\",VLOOKUP($D$5,Alle,9,0))","v":{"$error":"#N/A"}}]
[]
[null,null,null,"Sportart:",null,null,null,null,{"$f":"IF($D$5=\"\",\"\",IF(VLOOKUP($D$5,Alle,7,0)=\"\",\"\",VLOOKUP($D$5,Alle,7,0)))","v":{"$error":"#N/A"}},null,null,null,null,null,"Disziplin:",null,null,{"$f":"IF($D$5=\"\",\"\",IF(VLOOKUP($D$5,Alle,8,0)=\"\",\"-\",VLOOKUP($D$5,Alle,8,0)))","v":{"$error":"#N/A"}}]
[]
[null,null,null,"Landesverband:",null,null,null,null,{"$f":"IF($D$5=\"\",\"\",IF(VLOOKUP($D$5,Alle,11,0)=\"\",\"\",VLOOKUP($D$5,Alle,11,0)))","v":{"$error":"#N/A"}},null,null,null,null,null,"Verein:",null,null,{"$f":"IF($D$5=\"\",\"\",IF(VLOOKUP($D$5,Alle,10,0)=\"\",\"\",VLOOKUP($D$5,Alle,10,0)))","v":{"$error":"#N/A"}}]
[]
[]
[]
[null,null,null,"Testergebnisse"]
[]
[]
[]
[]
[]
[]
[]
[]
[]
[]
[]
[]
[]
[]
[]
[]
[]
[]
[]
[null,null,null,"Besondere Auffälligkeiten"]
[]
[null,null,null,null,null,null,null,null,null,null,null,null,null,null,"Gleichgewichtsfähigkeit:",null,null,null,null,null,{"$f":"IF($D$5=\"\",\"\",VLOOKUP($D$5,Alle,101,0))","v":{"$error":"#N/A"}}]
[]
[null,null,null,null,null,null,null,null,null,null,null,null,null,null,"Rumpfstabilität:",null,null,null,null,null,{"$f":"IF($D$5=\"\",\"\",VLOOKUP($D$5,Alle,100,0))","v":{"$error":"#N/A"}}]
[]
[null,null,null,null,null,null,null,null,null,null,null,null,null,null,"Beckenstabilität:",null,null,null,null,null,{"$f":"IF($D$5=\"\",\"\",VLOOKUP($D$5,Alle,103,0))","v":{"$error":"#N/A"}}]
[]
[null,null,null,null,null,null,null,null,null,null,null,null,null,null,"Beinachsenstabilität:",null,null,null,null,null,{"$f":"IF($D$5=\"\",\"\",VLOOKUP($D$5,Alle,102,0))","v":{"$error":"#N/A"}}]
[]
[null,null,null,null,null,null,null,null,null,null,null,null,null,null,"Beweglichkeitseinschränkungen:",null,null,null,null,null,null,null,null,{"$f":"IF(O48=\"\",\"-\",\"\")","v":{"$error":"#N/A"}}]
[null,null,null,null,null,null,null,null,null,null,null,null,null,null,{"$f":"IF($D$5=\"\",\"\",VLOOKUP($D$5,Alle,99,0))","v":{"$error":"#N/A"}}]
[]
[]
[]
[]
[]
[]
[]
[]
[]
[null,null,null,"Schmerzen:",null,null,null,{"$f":"IF($D$5=\"\",\"\",VLOOKUP($D$5,Alle,104,0))","v":{"$error":"#N/A"}}]
[]
[null,null,null,null,null,null,null,{"$f":"IF(ISNUMBER(FIND(\"bei\",H58)),\"Abklärung durch medizinisches Fachpersonal notwendig!\",\"\")","v":""}]

{"sheet":"Gruppenreport","index":4,"n_rows":3,"n_cols":15,"rows_kept":3,"cut":false,"hidden":false,"merged":[[1,2,2,11]]}
[]
[null,null,"Gruppenreport"]
[null,null,null,null,null,null,null,null,null,null,null,null,null,"N =",{"$f":"Pivots!$A$14","v":2}]

{"sheet":"Verweise","index":5,"n_rows":182,"n_cols":7,"rows_kept":182,"cut":false,"hidden":false,"merged":[]}
["Sportart",null,"Kader",null,"Reichweite",null,"Sprunghöhe"]
["7er-Rugby",null,"OK",null,10,null,8]
["Badminton",null,"PK",null,10.5,null,8.5]
["Baseball Softball",null,"EK",null,11,null,9]
["Basketball",null,"NK1",null,11.5,null,9.5]
["Beachhandball",null,"NK2",null,12,null,10]
["Beachvolleyball",null,"NK3",null,12.5,null,10.5]
["Biathlon",null,"LK",null,13,null,11]
["Bob",null,"TK",null,13.5,null,11.5]
["Bogenschießen",null,"Kein",null,14,null,12]
["Boxen",null,null,null,14.5,null,12.5]
["Breaking",null,null,null,15,null,13]
["Curling",null,null,null,15.5,null,13.5]
["Eishockey",null,null,null,16,null,14]
["Eiskunstlauf",null,null,null,16.5,null,14.5]
["Eisschnelllauf",null,null,null,17,null,15]
["Fechten",null,null,null,17.5,null,15.5]
["Fußball",null,null,null,18,null,16]
["Futsal",null,null,null,18.5,null,16.5]
["Gerätturnen",null,null,null,19,null,17]
["Gewichtheben",null,null,null,19.5,null,17.5]
["Golf",null,null,null,20,null,18]
["Handball",null,null,null,20.5,null,18.5]
["Hockey",null,null,null,21,null,19]
["Judo",null,null,null,21.5,null,19.5]
["Kanu-Rennsport",null,null,null,22,null,20]
["Kanu-Slalom",null,null,null,22.5,null,20.5]
["Karate",null,null,null,23,null,21]
["Leichtathletik",null,null,null,23.5,null,21.5]
["Moderner Fünfkampf",null,null,null,24,null,22]
["Nordische Kombination ",null,null,null,24.5,null,22.5]
["Radsport",null,null,null,25,null,23]
["Reiten",null,null,null,25.5,null,23.5]
["Rennrodeln",null,null,null,26,null,24]
["Rhythmische Sportgymnastik",null,null,null,26.5,null,24.5]
["Ringen",null,null,null,27,null,25]
["Rudern",null,null,null,27.5,null,25.5]
["Schießen",null,null,null,28,null,26]
["Schwimmen",null,null,null,28.5,null,26.5]
["Segeln",null,null,null,29,null,27]
["Shorttrack",null,null,null,29.5,null,27.5]
["Skateboard",null,null,null,30,null,28]
["Skeleton",null,null,null,30.5,null,28.5]
["Ski Alpin",null,null,null,31,null,29]
["Ski Freestyle",null,null,null,31.5,null,29.5]
["Ski Mountaineering",null,null,null,32,null,30]
["Skilanglauf",null,null,null,32.5,null,30.5]
["Skispringen ",null,null,null,33,null,31]
["Snowboard",null,null,null,33.5,null,31.5]
["Sportklettern",null,null,null,34,null,32]
["Surfen",null,null,null,34.5,null,32.5]
["Synchronschwimmen",null,null,null,35,null,33]
["Taekwondo",null,null,null,35.5,null,33.5]
["Tanzsport",null,null,null,36,null,34]
["Tennis",null,null,null,36.5,null,34.5]
["Tischtennis",null,null,null,37,null,35]
["Trampolinturnen",null,null,null,37.5,null,35.5]
["Triathlon",null,null,null,38,null,36]
["Volleyball",null,null,null,38.5,null,36.5]
["Wasserball",null,null,null,39,null,37]
["Wasserspringen",null,null,null,39.5,null,37.5]
[null,null,null,null,40,null,38]
[null,null,null,null,40.5,null,38.5]
[null,null,null,null,41,null,39]
[null,null,null,null,41.5,null,39.5]
[null,null,null,null,42,null,40]
[null,null,null,null,42.5]
[null,null,null,null,43]
[null,null,null,null,43.5]
[null,null,null,null,44]
[null,null,null,null,44.5]
[null,null,null,null,45]
[null,null,null,null,45.5]
[null,null,null,null,46]
[null,null,null,null,46.5]
[null,null,null,null,47]
[null,null,null,null,47.5]
[null,null,null,null,48]
[null,null,null,null,48.5]
[null,null,null,null,49]
[null,null,null,null,49.5]
[null,null,null,null,50]
[null,null,null,null,50.5]
[null,null,null,null,51]
[null,null,null,null,51.5]
[null,null,null,null,52]
[null,null,null,null,52.5]
[null,null,null,null,53]
[null,null,null,null,53.5]
[null,null,null,null,54]
[null,null,null,null,54.5]
[null,null,null,null,55]
[null,null,null,null,55.5]
[null,null,null,null,56]
[null,null,null,null,56.5]
[null,null,null,null,57]
[null,null,null,null,57.5]
[null,null,null,null,58]
[null,null,null,null,58.5]
[null,null,null,null,59]
[null,null,null,null,59.5]
[null,null,null,null,60]
[null,null,null,null,60.5]
[null,null,null,null,61]
[null,null,null,null,61.5]
[null,null,null,null,62]
[null,null,null,null,62.5]
[null,null,null,null,63]
[null,null,null,null,63.5]
[null,null,null,null,64]
[null,null,null,null,64.5]
[null,null,null,null,65]
[null,null,null,null,65.5]
[null,null,null,null,66]
[null,null,null,null,66.5]
[null,null,null,null,67]
[null,null,null,null,67.5]
[null,null,null,null,68]
[null,null,null,null,68.5]
[null,null,null,null,69]
[null,null,null,null,69.5]
[null,null,null,null,70]
[null,null,null,null,70.5]
[null,null,null,null,71]
[null,null,null,null,71.5]
[null,null,null,null,72]
[null,null,null,null,72.5]
[null,null,null,null,73]
[null,null,null,null,73.5]
[null,null,null,null,74]
[null,null,null,null,74.5]
[null,null,null,null,75]
[null,null,null,null,75.5]
[null,null,null,null,76]
[null,null,null,null,76.5]
[null,null,null,null,77]
[null,null,null,null,77.5]
[null,null,null,null,78]
[null,null,null,null,78.5]
[null,null,null,null,79]
[null,null,null,null,79.5]
[null,null,null,null,80]
[null,null,null,null,80.5]
[null,null,null,null,81]
[null,null,null,null,81.5]
[null,null,null,null,82]
[null,null,null,null,82.5]
[null,null,null,null,83]
[null,null,null,null,83.5]
[null,null,null,null,84]
[null,null,null,null,84.5]
[null,null,null,null,85]
[null,null,null,null,85.5]
[null,null,null,null,86]
[null,null,null,null,86.5]
[null,null,null,null,87]
[null,null,null,null,87.5]
[null,null,null,null,88]
[null,null,null,null,88.5]
[null,null,null,null,89]
[null,null,null,null,89.5]
[null,null,null,null,90]
[null,null,null,null,90.5]
[null,null,null,null,91]
[null,null,null,null,91.5]
[null,null,null,null,92]
[null,null,null,null,92.5]
[null,null,null,null,93]
[null,null,null,null,93.5]
[null,null,null,null,94]
[null,null,null,null,94.5]
[null,null,null,null,95]
[null,null,null,null,95.5]
[null,null,null,null,96]
[null,null,null,null,96.5]
[null,null,null,null,97]
[null,null,null,null,97.5]
[null,null,null,null,98]
[null,null,null,null,98.5]
[null,null,null,null,99]
[null,null,null,null,99.5]
[null,null,null,null,100]

{"sheet":"Pivots","index":6,"n_rows":19,"n_cols":12,"rows_kept":19,"cut":false,"hidden":false,"merged":[]}
[]
[]
["Streckung ",2.5]
["Beugung ",2]
["Drehung ",3]
["Hocke ",3]
["Schulter",3]
["Rumpfstabilität",2]
["Gleichgewichtsfähigkeit",3]
["Beinachsenstabilität",2]
["Beckenachsenstabilität",3]
[]
["Anzahl von ID"]
[2]
[]
[]
[]
[null,null,null,null,null,null,null,null,null,null,null,"Summe von ID"]
[null,null,null,null,null,null,null,null,null,null,null,3]